Cogmind - Beta 13 @@@ ROGUE MODE // 2024.06.16 @ 16:47:21 Player: block30 Result: Destroyed by H-61 Shepherd with Heavy Assault Cannon Performance ------------- Evolutions (2) 1000 Regions Visited (3) 600 Robots Destroyed (38) 190 Value Destroyed (1057) 1057 Prototype IDs (3) 60 Alien Tech Used (0) 0 Bonus (0) 0 TOTAL SCORE: 2907 Bonus ------- None Cogmind --------- Core Integrity 0/550 Matter 290/300 Energy 61/100 System Corruption 6% Temperature Cool (0) Movement Core (200) Ox3 Location -8/Materials Parts ------- > --- POWER (2) -------- (None) > --- PROPULSION (3) --- (None) > --- UTILITY (4) ------ Medium Storage Unit > --- WEAPON (2) ------- (None) > --- INVENTORY (10) --- Light Ion Engine Sensor Array Ion Cannon Assault Rifle Light Assault Rifle High-powered Shotgun Enhanced Autogun Peak State ------------ > --- POWER ------------ Heavy Ion Engine Light Nuclear Core > --- PROPULSION ------- Improved Aluminum Leg Carbon-fiber Leg > --- UTILITY ---------- Cooling System Disposable Heat Sink Medium Storage Unit Hardened Medium Armor Plating > --- WEAPON ----------- Beam Rifle Advanced EMP Blaster > --- INVENTORY -------- Light Ion Engine Sensor Array EM Shotgun Ion Cannon Light Assault Rifle High-powered Shotgun Enhanced Autogun Advanced EMP Blaster [Rating: 26] Favorites ----------- Power Heavy Ion Engine Engine Heavy Ion Engine Power Core Light Nuclear Core Propulsion Aluminum Leg Leg Aluminum Leg Utility ECM Suite Device ECM Suite Storage Small Storage Unit Protection Hardened Medium Armor Plating Weapon Light Assault Rifle Energy Gun Beam Rifle Ballistic Gun Light Assault Rifle Launcher Advanced EMP Blaster Build | -11 -10 -9 -8 ------- Run | Yrd Mat Mat Mat Slots Evolved 4 | . . 2 2 Power 1 | . . 1 . Propulsion 1 | . . 1 . Utility 2 | . . . 2 Weapon . | . . . . Parts Attached 37 | 7 4 6 20 Power 6 | 1 . 3 2 Engine 4 | 1 . 2 1 Core 2 | . . 1 1 Reactor . | . . . . Propulsion 7 | 2 . 1 4 Treads . | . . . . Leg 7 | 2 . 1 4 Wheel . | . . . . Hover . | . . . . Flight . | . . . . Utility 10 | 1 2 . 7 Device 5 | . 2 . 3 Storage 2 | 1 . . 1 Processor . | . . . . Hackware . | . . . . Protection 3 | . . . 3 Artifact . | . . . . Weapon 14 | 3 2 2 7 Energy Gun 7 | 2 1 1 3 Energy Cannon . | . . . . Ballistic Gun 5 | 1 1 1 2 Ballistic Cannon . | . . . . Launcher 2 | . . . 2 Special Weapon . | . . . . Impact Weapon . | . . . . Slashing Weapon . | . . . . Piercing Weapon . | . . . . Special Melee Weapon . | . . . . Unidentified Prototypes 3 | . . 1 2 Parts Lost 15 | . . 1 14 Power 3 | . . . 3 Propulsion 4 | . . . 4 Utility 4 | . . . 4 Weapon 4 | . . 1 3 Highest Loss Streak 7 | . . 1 7 To Critical Strikes . | . . . . Average Slot Usage (%) 85 | . 98 85 78 Engine 12 | . 14 17 8 Core 1 | . . 1 2 Leg 20 | . 28 22 16 Device 14 | . 13 11 16 Storage 10 | . 14 11 9 Protection 3 | . . . 7 Energy Gun 10 | . 13 11 7 Ballistic Gun 10 | . 14 11 8 Naked Turns . | . . . . Heaviest Build 43 | 13 15 26 43 Greatest Support 32 | 20 20 20 32 Greatest Overweight (x) 6 | . . 1 6 Average Overweight (x) . | . . . . Largest Inventory Capacity 10 | 8 8 8 10 Average Capacity 8 | 6 8 8 9 Most Carried 10 | 2 4 6 10 Average Carried 4 | . 2 4 5 Final Capacity 10 | 8 8 8 10 Final Carried 7 | 1 3 6 7 Class Distribution -------------------- 80% | Mutant 19% | Scavenger-Mutant Dominant Class ---------------- Mutant | -10/Materials Mutant | -9/Materials Mutant | -8/Materials Resources | -11 -10 -9 -8 ----------- Run | Yrd Mat Mat Mat Matter Collected 703 | 226 109 100 268 Remotely . | . . . . Salvage Created 1297 | . 165 209 923 Parts 81 | . 18 9 54 Haulers Intercepted 1 | . . . 1 Recyclers Shooed . | . . . . Parts Field Recycled . | . . . . Retrieved Matter . | . . . . Parts Self-Destructed . | . . . . Prevented . | . . . . Kills | -11 -10 -9 -8 ------- Run | Yrd Mat Mat Mat Combat Hostiles Destroyed 29 | . 10 5 14 Guns 22 | . 10 5 7 AOE 5 | . . . 5 Classes Destroyed 10 | . 2 1 7 Worker 3 | . . . 3 Builder 3 | . . . 3 Hauler 1 | . . . 1 Watcher 2 | . . . 2 Swarmer 10 | . 9 . 1 Grunt 11 | . 1 4 6 Brawler 1 | . . . 1 Sentry 3 | . . 1 2 Specialist 2 | . . . 2 Hunter 2 | . . . 2 Best Kill Streak 12 | . 3 2 12 Combat Bots Only 5 | . 3 2 5 Max Kills in Single Turn 5 | . 1 1 5 Gunslinging . | . . . . Exploded 3 | . . . 3 Melee . | . . . . Uniques/NPCs Destroyed . | . . . . Combat | -11 -10 -9 -8 -------- Run | Yrd Mat Mat Mat Hostile Shots Fired 267 | . 58 40 169 Missed 74 | . 15 8 51 Damage Taken 2814 | . 377 333 2104 Core 757 | . 104 53 600 Absorbed by Shields . | . . . . Core Remaining (%) 81 | 100 58 86 . Volleys Fired 94 | . 27 15 52 Largest 2 | . 2 2 2 Hottest 101 | . 70 79 101 Shots Fired 170 | . 54 30 86 Gun 161 | . 54 30 77 Cannon . | . . . . Launcher 9 | . . . 9 Special . | . . . . Kinetic 72 | . 27 15 30 Thermal 78 | . 27 15 36 Explosive . | . . . . Electromagnetic 20 | . . . 20 Robot Hit Streak 28 | . 6 7 28 Robot Miss Streak 3 | . 3 2 3 Penetration Max . | . . . . Secondary Targets 1 | . 1 . . Max Gunslinging Chain 1 | . 1 . . Shots Hit Robots 115 | . 28 19 68 Core Hits 63 | . 14 10 39 Critical Kills . | . . . . Critical Parts Destroyed 1 | . . . 1 Critical Strikes 7 | . 2 1 4 Burn 6 | . 2 1 3 Destroy 1 | . . . 1 Melee Attacks . | . . . . Impact . | . . . . Slashing . | . . . . Piercing . | . . . . Sneak Attacks . | . . . . Combat Hostiles . | . . . . Follow-up Attacks . | . . . . Damage Inflicted 2459 | . 280 274 1905 Guns 1317 | . 279 274 764 Cannons . | . . . . Explosions 1141 | . . . 1141 Melee . | . . . . Ramming 1 | . 1 . . Kinetic 416 | . 122 105 189 Thermal 1051 | . 157 169 725 Explosive 91 | . . . 91 Electromagnetic 900 | . . . 900 Impact . | . . . . Slashing . | . . . . Piercing . | . . . . Highest Corruption 6 | . . . 6 Average Corruption 5 | . . . 5 Corruption Purged . | . . . . Corruption Blocked . | . . . . Effects 12 | . . . 12 Message Errors 3 | . . . 3 Matter Fused 4 | . . . 4 Energy Discharges 2 | . . . 2 Parts Rejected 1 | . . . 1 Parts Fused 1 | . . . 1 Data Loss (major) 1 | . . . 1 Overload Shots . | . . . . Overflow Damage 31 | . . . 31 Projectiles . | . . . . Explosions 31 | . . . 31 Melee . | . . . . Knockbacks . | . . . . Impact . | . . . . Kinetic . | . . . . Secondary . | . . . . Self-Inflicted Damage 248 | . . . 248 Shots 8 | . . . 8 Rammed . | . . . . Targets Rammed 1 | . 1 . . Kicked 1 | . 1 . . Crushed . | . . . . Highest Temperature 249 | . 142 249 198 Average Temperature 73 | . 46 84 91 Received Heat Transfer 516 | . 54 138 324 Siege Activations . | . . . . Robots Corrupted 1 | . . . 1 Combat Hostiles 1 | . . . 1 Parts Fried 5 | . . . 5 Impact Corruptions . | . . . . Robots Melted 1 | . . . 1 Combat Hostiles 1 | . . . 1 Parts Melted 8 | . 2 1 5 Heat Transferred 2779 | . 629 518 1632 Parts Sabotaged . | . . . . Parts Stolen . | . . . . Parts Stripped . | . . . . Power Chain Reactions 6 | . . . 6 Alert | -11 -10 -9 -8 ------- Run | Yrd Mat Mat Mat Peak Influence 236 | . 236 176 226 Initial 46 | . . 46 3 Average 66 | . 110 75 37 Maximum Alert Level 1 | . 1 . 1 Low Security (%) 95 | 100 83 100 99 Level 1 4 | . 16 . . Level 2 . | . . . . Level 3 . | . . . . Level 4 . | . . . . Level 5 . | . . . . High Security . | . . . . Max Security . | . . . . Squads Dispatched 7 | . . 1 6 Investigation . | . . . . Extermination . | . . . . Reinforcement 4 | . . 1 3 Assault . | . . . . Garrison 3 | . . . 3 Intercept . | . . . . Searches Triggered . | . . . . Construction Impeded 1 | . . . 1 Haulers Reinforced . | . . . . Active Scanning Responses . | . . . . Cargo Convoy Interrupts . | . . . . Stealth | -11 -10 -9 -8 --------- Run | Yrd Mat Mat Mat Distress Signals 4 | . 1 . 3 Communications Jammed . | . . . . Distress Signals . | . . . . Times Spotted 58 | . 18 10 30 Peak Tracking Total 8 | . 5 6 8 Tactical Retreats 8 | . 4 1 3 Traps | -11 -10 -9 -8 ------- Run | Yrd Mat Mat Mat Traps Triggered 2 | . . . 2 Indirectly . | . . . . Trap Hack Attempts . | . . . . Triggered . | . . . . Disarmed . | . . . . Reprogrammed . | . . . . Reused . | . . . . Traps Extracted . | . . . . Installed . | . . . . Triggered . | . . . . Machines | -11 -10 -9 -8 ---------- Run | Yrd Mat Mat Mat Machines Disabled 3 | . . . 3 Max in Single Turn 2 | . . . 2 Machines Repaired . | . . . . Machines Dismantled . | . . . . Machines Sabotaged . | . . . . Overloaded Fab Kills . | . . . . Hacking | -11 -10 -9 -8 --------- Run | Yrd Mat Mat Mat Machines Accessed 4 | . 2 . 2 Terminals 2 | . 1 . 1 Fabricators . | . . . . Repair Stations 1 | . . . 1 Recycling Units 1 | . 1 . . Scanalyzers . | . . . . Garrison Access . | . . . . Total Hacks 7 | . 5 . 2 Successful 6 | . 4 . 2 Failed 1 | . 1 . . Catastrophic . | . . . . Database Lockouts . | . . . . Manual . | . . . . Terminals 4 | . 3 . 1 Fabricators . | . . . . Repair Stations 1 | . . . 1 Recycling Units 2 | . 2 . . Scanalyzers . | . . . . Garrison Access . | . . . . Terminal Hacks 3 | . 2 . 1 Record 3 | . 2 . 1 Fabricator Hacks . | . . . . Repair Station Hacks 1 | . . . 1 Scan Component 1 | . . . 1 Recycling Unit Hacks 2 | . 2 . . Recycle Component 2 | . 2 . . Scanalyzer . | . . . . Garrison Access Hacks . | . . . . Unauthorized Hacks . | . . . . Terminals . | . . . . Fabricators . | . . . . Repair Stations . | . . . . Recycling Units . | . . . . Scanalyzers . | . . . . Garrison Access . | . . . . Data Cores Recovered . | . . . . Used . | . . . . Hacking Detections 1 | . 1 . . Full Trace Events 1 | . 1 . . Feedback Events . | . . . . Feedback Blocked . | . . . . Robot Schematics Acquired . | . . . . Robots Built . | . . . . Authchips . | . . . . Time . | . . . . Total Robot Build Rating . | . . . . Part Schematics Acquired . | . . . . Parts Built . | . . . . Authchips . | . . . . Time . | . . . . Total Part Build Rating . | . . . . Parts Repaired . | . . . . Time . | . . . . Parts Recycled 2 | . 2 . . Recycled Matter . | . . . . Retrieved Matter . | . . . . Retrieved Components . | . . . . Parts Scanalyzed . | . . . . Part Schematics Acquired . | . . . . Parts Damaged . | . . . . Bothacking | -11 -10 -9 -8 ------------ Run | Yrd Mat Mat Mat Used RIF Installer . | . . . . Robots Hacked . | . . . . Non-combat . | . . . . Combat . | . . . . Robot Hacks Applied . | . . . . Relay Couplers Released . | . . . . Fabnet Peak Effective % . | . . . . Robots Rewired . | . . . . Allies Hacked . | . . . . Hacks Repelled . | . . . . Allies | -11 -10 -9 -8 -------- Run | Yrd Mat Mat Mat Total Allies . | . . . . Largest Group . | . . . . Highest-Rated Group . | . . . . Highest-Rated Ally . | . . . . Total Orders . | . . . . Ally Attacks . | . . . . Total Damage . | . . . . Kills . | . . . . Allies Corrupted . | . . . . Allies Melted . | . . . . Intel | -11 -10 -9 -8 ------- Run | Yrd Mat Mat Mat Robot Analysis Total . | . . . . Derelict Logs Recovered . | . . . . Drone Launches . | . . . . Drone Recoveries . | . . . . Exploration | -11 -10 -9 -8 ------------- Run | Yrd Mat Mat Mat Turns Passed 2155 | 51 585 560 959 Spaces Moved 991 | 36 350 240 365 Core 12 | 9 . . 3 Treads . | . . . . Legs 979 | 27 350 240 362 Wheels . | . . . . Hover . | . . . . Flight . | . . . . Fastest Speed 50 | 50 120 120 120 Average Speed 151 | 102 120 165 178 Slowest Speed 350 | 120 120 190 350 Overloaded Moves . | . . . . Propulsion Burnouts . | . . . . Robots Hopped . | . . . . Cave-ins Triggered . | . . . . Exploration Rate (%) 27 | 3 38 29 38 Regions Visited 3 Branch Regions . Pre-discovered Areas . | . . . . Known Exits Taken . | . . . . Unknown Exits Taken 3 | 1 1 1 . Scrap Searched . | . . . . Spaces Dug . | . . . . Terrain Destroyed 38 | . . . 38 Melee . | . . . . Projectile . | . . . . AOE 38 | . . . 38 Terrain Rammed . | . . . . Walls Destroyed . | . . . . Machines Disabled . | . . . . Actions | -11 -10 -9 -8 --------- Run | Yrd Mat Mat Mat Total 1485 | 49 466 377 593 Wait 302 | . 76 101 125 Move 988 | 35 349 239 365 Hop . | . . . . Pick Up 45 | 7 7 10 21 Fast Attach . | . . . . Attach 30 | 6 3 5 16 Detach . | . . . . Swap 7 | 1 1 1 4 Drop 18 | . 2 6 10 Fire 94 | . 27 15 52 Melee . | . . . . Ram . | . . . . Kick 1 | . 1 . . Crush . | . . . . Escape Stasis . | . . . . Rewire . | . . . . Trap . | . . . . Miscellaneous . | . . . . Route ------- -11/Scrapyard -10/Materials -9/Materials (discovered 2 exits: *Mat / [*Min]) -8/Materials History --------- Turn | Location | Event 29 | -11/Scrapyard | Discovered new exit (range 16) 52 | -11/Scrapyard | Entered Materials 318 | -10/Materials | Build established: Mutant 384 | -10/Materials | Discovered new exit (range 16) 637 | -10/Materials | Entered another Materials area 637 | -9/Materials | Evolved 2 slots: Power x1, Propulsion x1 738 | -9/Materials | Discovered new exit (range 9) 1161 | -9/Materials | Discovered new exit (range 13) 1197 | -9/Materials | Entered another Materials area 1197 | -8/Materials | Evolved 2 slots: Utility x2 1425 | -8/Materials | Garrison activated, responded to threat 2146 | -8/Materials | Core integrity fell below 50% 2153 | -8/Materials | Core integrity fell below 20% 2156 | -8/Materials | Destroyed by H-61 Shepherd with Heavy Assault Cannon Last Messages --------------- 02141_ Penetrated by Slug. 02141_ Cooling System destroyed. 02143_ Penetrated by Slug. 02143_ R-06 Scavenger collects Corrupted Particle Gun. 02143_ R-06 Scavenger collects Corrupted Imp. Hover Unit. 02144_ Imp. Aluminum Leg destroyed. 02145_ Penetrated by Slug. 02146_ K-01 Serf suffers critical hit (Blast). 02146_ K-01 Serf destroyed. 02146_ Penetrated by Slug. 02148_ EM Shotgun destroyed. 02150_ Slug penetrates Wall. 02151_ Nuclear Reactor explodes. 02151_ X-62 Marksman destroyed. 02151_ Targeting Computer fried. 02151_ Core Analyzer fried. 02151_ X-62 Marksman destroyed. 02154_ Adv. EMP Blaster destroyed. Map ----- +----------------------------------------------------+ | ?????????????????????????????????????????????????? | | ?????????????????????????????????????????????????? | | ?????????????????????????????????????????????????? | | ?????????????????????????????????????????????????? | | ?????????????????????????????????????????????????? | | ?????????????????????????????????????????????????? | | ?????????????????????????????????????????????????? | | ???????????????????? ????????????????????????? | | ???????????????????# ???????????????????????? | | ?##########????????# [ ????????????????????????? | | ?# #????????# ????"???????????????????? | | ?# """ #????????# ?? #??????????????????? | | ?# """ #????????# ? #??????????????????? | | ?# """ #????????# """ #??????????????????? | | ?# [#????????# Hggg""" #??????????????????? | | ?# ##???????# "" #??????????????????? | | ?#! ! #???????# #??????????????????? | | ?# ! "#???????# #?? ??????????????? | | ?# "##????###!=! # ""??????????????? | | ?########/### ###[[[%[ + "???????????????? | | ####?# =%=%=!=% !!!! #??????????????????? | | # % % %[ %= #??????????????????? | | """ # % % % = % ! #??????????????????? | | """ # ######### %= #??????????????????? | | """ # # """ # ! #??????????????????? | | # # """ # @ #??????????????????? | | """ # %+ """ # = % % +??????????????????? | | """ # #% # #??????????????????? | | """ # # = # #??????????????????? | | # ###########= # #??????????????????? | | #######+#####??????####+### #??????????????????? | | ???# #?????????????? #??????????????????? | | #### """ #?????????????? #??????????????????? | | + """ #??????????????? +??????????????????? | | #### """ #??????????????? #??????????????????? | | ???# ##?????????????? #??????????????????? | | ???# #??????????????? #??????????????????? | | ???# ##??????????????? ??????????????????? | | #### "Y" #???????????????? ??????????????????? | | + """ #????????????????????????????????????? | | #############????????????????????????????????????? | | #???????????????????????????????????????????????? | | #???????????????????????????????????????????????? | | #???????????????????????????????????????????????? | | #???????????????????????????????????????????????? | | #???????????????????????????????????????????????? | | #???????????????????????????????????????????????? | | ##???????????????????????????????????????????????? | | ?????????????????????????????????????????????????? | | ?????????????????????????????????????????????????? | +----------------------------------------------------+ Best States ------------- Heat Dissipation 53 Coolant Potential 50 Energy Generation 23 Energy Capacity 430 Matter Stores 300 Matter Capacity 300 Sight Range 16 Robot Scan Range 14 Terrain Scan Density 10 ECM Strength 1 Armor Coverage 225 Resistance: EM 15 Evasion (%) 55 Item Schematics ----------------- None Robot Schematics ------------------ None Fabricated ------------ Nothing Alien Tech Used ----------------- None Achievements -------------- Loot Pinata Challenges ------------ None Game ------ Seed RecyclingChargeCanceller Manual? 0 Play Time 00:23:14 Cumulative 7.0 hours Start 2024.06.16 @ 16:24:43 End 2024.06.16 @ 16:47:21 Sessions 1 Manual Loads 0 Difficulty Rogue Special Mode None Game No. 26 Rogue 24 Adventurer 1 Explorer 1 Win Type - Total 0 Types 0/0/0/0/0/0/0/0/0 Lore% 15 Gallery% 7 Achievement% 16 Wizard Run 0 Options --------- Layout 1 ASCII 0 Keyboard 0 Movement Mouse Keybinds 0 Fullscreen 2 Font 24/Smallcaps Map View 50x35 Zoom Use 0% Tactical HUD 1 Map Filters NONE Filters NONE Steam 1 RUN: 0b1912ff-dd2a-4bf5-97b8-aa29c303391b